[Event "Titled Tuesday Blitz May 9 Late 2023"]
[White "Dragomirescu, Robin-Alexandru"]
[Black "Carlsen, Magnus"]
[WhiteFideId "1213849"]
[BlackFideId "1503014"]
[WhiteElo "2356"]
[BlackElo "2852"]
[Result "0-1"]
[Round "01"]
[TimeControl "180+2"]
[Date "2023.05.09"]
[WhiteClock "0:00:01"]
[BlackClock "0:02:08"]

1. b3 {[%clk 0:02:58]}  a5 {[%clk 0:02:57]} 2. Nc3 {[%clk 0:02:55]}  d5 {[%clk 0:02:57]} 3. d4 {[%clk 0:02:55]}  Nf6 {[%clk 0:02:51]} 4. Nf3 {[%clk 0:02:52]}  Bf5 {[%clk 0:02:50]} 5. Bf4 {[%clk 0:02:50]}  e6 {[%clk 0:02:49]} 6. a3 {[%clk 0:02:40]}  h6 {[%clk 0:02:47]} 7. h3 {[%clk 0:02:35]}  Ne4 {[%clk 0:02:44]} 8. Nxe4 {[%clk 0:02:25]}  dxe4 {[%clk 0:02:45]} 9. Ne5 {[%clk 0:02:21]}  g5 {[%clk 0:02:45]} 10. Bh2 {[%clk 0:02:20]}  e3 {[%clk 0:02:45]} 11. fxe3 {[%clk 0:02:14]}  Bd6 {[%clk 0:02:45]} 12. c4 {[%clk 0:01:55]}  Be4 {[%clk 0:02:43]} 13. Nf3 {[%clk 0:01:29]}  Bxh2 {[%clk 0:02:40]} 14. Nxh2 {[%clk 0:01:13]}  Qd6 {[%clk 0:02:41]} 15. Nf3 {[%clk 0:01:08]}  Nd7 {[%clk 0:02:37]} 16. Kf2 {[%clk 0:01:01]}  f5 {[%clk 0:02:34]} 17. g4 {[%clk 0:00:45]}  Rf8 {[%clk 0:02:32]} 18. Rg1 {[%clk 0:00:35]}  O-O-O {[%clk 0:02:31]} 19. c5 {[%clk 0:00:32]}  Qd5 {[%clk 0:02:26]} 20. b4 {[%clk 0:00:28]}  Nf6 {[%clk 0:02:21]} 21. Ne5 {[%clk 0:00:19]}  fxg4 {[%clk 0:02:20]} 22. Ke1 {[%clk 0:00:20]}  gxh3 {[%clk 0:02:16]} 23. Bxh3 {[%clk 0:00:21]}  Nd7 {[%clk 0:02:16]} 24. Nxd7 {[%clk 0:00:12]}  Rxd7 {[%clk 0:02:14]} 25. Qa4 {[%clk 0:00:12]}  h5 {[%clk 0:02:12]} 26. Qxa5 {[%clk 0:00:12]}  Kb8 {[%clk 0:02:09]} 27. b5 {[%clk 0:00:11]}  g4 {[%clk 0:02:10]} 28. b6 {[%clk 0:00:11]}  cxb6 {[%clk 0:02:09]} 29. Qxb6 {[%clk 0:00:01]}  gxh3 {[%clk 0:02:08]} 0-1


[Site "https://www.chess.com"]

[Event "Titled Tuesday Blitz May 9 Late 2023"]
[White "Nakamura, Hikaru"]
[Black "Cruz, William Ferreira Da"]
[WhiteFideId "2016192"]
[BlackFideId "2118050"]
[WhiteElo "2885"]
[BlackElo "2223"]
[Result "1-0"]
[Round "01"]
[TimeControl "180+2"]
[Date "2023.05.09"]
[WhiteClock "0:02:14"]
[BlackClock "0:00:00"]

1. Nf3 {[%clk 0:03:00]}  Nf6 {[%clk 0:02:58]} 2. b3 {[%clk 0:03:00]}  g6 {[%clk 0:02:58]} 3. Bb2 {[%clk 0:03:00]}  Bg7 {[%clk 0:02:58]} 4. d4 {[%clk 0:03:01]}  d6 {[%clk 0:02:58]} 5. e3 {[%clk 0:03:01]}  O-O {[%clk 0:02:58]} 6. Be2 {[%clk 0:03:02]}  e5 {[%clk 0:02:59]} 7. dxe5 {[%clk 0:03:02]}  Ng4 {[%clk 0:02:59]} 8. c4 {[%clk 0:03:02]}  Nc6 {[%clk 0:02:56]} 9. O-O {[%clk 0:03:02]}  Ngxe5 {[%clk 0:02:54]} 10. Nc3 {[%clk 0:03:02]}  Re8 {[%clk 0:02:49]} 11. Qd2 {[%clk 0:03:01]}  Nxf3+ {[%clk 0:02:14]} 12. Bxf3 {[%clk 0:03:02]}  Ne5 {[%clk 0:02:15]} 13. Be2 {[%clk 0:03:02]}  Be6 {[%clk 0:02:11]} 14. Nd5 {[%clk 0:03:02]}  c6 {[%clk 0:02:02]} 15. Nc3 {[%clk 0:03:00]}  Qc7 {[%clk 0:02:02]} 16. Rfd1 {[%clk 0:03:00]}  Rad8 {[%clk 0:02:00]} 17. Rac1 {[%clk 0:03:00]}  Qb8 {[%clk 0:01:42]} 18. h3 {[%clk 0:03:00]}  d5 {[%clk 0:01:36]} 19. cxd5 {[%clk 0:02:59]}  Bxd5 {[%clk 0:01:36]} 20. Nxd5 {[%clk 0:02:57]}  Rxd5 {[%clk 0:01:35]} 21. Qc2 {[%clk 0:02:57]}  Red8 {[%clk 0:01:34]} 22. Bd4 {[%clk 0:02:51]}  g5 {[%clk 0:00:34]} 23. b4 {[%clk 0:02:41]}  Ng6 {[%clk 0:00:32]} 24. Bc4 {[%clk 0:02:36]}  R5d7 {[%clk 0:00:28]} 25. Qf5 {[%clk 0:02:37]}  Bxd4 {[%clk 0:00:25]} 26. Rxd4 {[%clk 0:02:37]}  Qc7 {[%clk 0:00:19]} 27. Rxd7 {[%clk 0:02:32]}  Qxd7 {[%clk 0:00:18]} 28. Qxg5 {[%clk 0:02:32]}  Qd2 {[%clk 0:00:17]} 29. Rf1 {[%clk 0:02:29]}  Rd7 {[%clk 0:00:13]} 30. Qg4 {[%clk 0:02:26]}  Kg7 {[%clk 0:00:12]} 31. Bb3 {[%clk 0:02:23]}  Re7 {[%clk 0:00:10]} 32. Rd1 {[%clk 0:02:23]}  Qc3 {[%clk 0:00:10]} 33. h4 {[%clk 0:02:18]}  Kf8 {[%clk 0:00:08]} 34. h5 {[%clk 0:02:17]}  Ne5 {[%clk 0:00:08]} 35. Rd8+ {[%clk 0:02:16]}  Re8 {[%clk 0:00:07]} 36. Rxe8+ {[%clk 0:02:17]}  Kxe8 {[%clk 0:00:08]} 37. Qf5 {[%clk 0:02:13]}  Qa1+ {[%clk 0:00:05]} 38. Kh2 {[%clk 0:02:13]}  Ke7 {[%clk 0:00:00]} 39. f4 {[%clk 0:02:14]} 1-0


[Site "https://www.chess.com"]

[Event "Titled Tuesday Blitz May 9 Late 2023"]
[White "Paravyan, David"]
[Black "Koc, Przemyslaw"]
[WhiteFideId "4194985"]
[BlackFideId "1109081"]
[WhiteElo "2563"]
[BlackElo "2161"]
[Result "1-0"]
[Round "01"]
[TimeControl "180+2"]
[Date "2023.05.09"]
[WhiteClock "0:01:34"]
[BlackClock "0:00:59"]

1. e4 {[%clk 0:02:59]}  e5 {[%clk 0:02:59]} 2. Nf3 {[%clk 0:02:59]}  Nf6 {[%clk 0:02:59]} 3. d4 {[%clk 0:02:58]}  Nxe4 {[%clk 0:02:59]} 4. dxe5 {[%clk 0:02:57]}  d5 {[%clk 0:02:57]} 5. Nbd2 {[%clk 0:02:53]}  Bf5 {[%clk 0:02:49]} 6. Nd4 {[%clk 0:02:52]}  Bg6 {[%clk 0:02:47]} 7. Nxe4 {[%clk 0:02:49]}  dxe4 {[%clk 0:02:44]} 8. Be3 {[%clk 0:02:48]}  Be7 {[%clk 0:02:37]} 9. h4 {[%clk 0:02:46]}  h5 {[%clk 0:02:35]} 10. Qd2 {[%clk 0:02:40]}  Nc6 {[%clk 0:02:27]} 11. O-O-O {[%clk 0:02:21]}  Nxd4 {[%clk 0:02:24]} 12. Bxd4 {[%clk 0:02:20]}  O-O {[%clk 0:02:16]} 13. Bc4 {[%clk 0:02:11]}  c6 {[%clk 0:02:04]} 14. Kb1 {[%clk 0:01:56]}  b5 {[%clk 0:02:01]} 15. Be2 {[%clk 0:01:56]}  c5 {[%clk 0:01:51]} 16. Be3 {[%clk 0:01:55]}  c4 {[%clk 0:01:41]} 17. Qc1 {[%clk 0:01:36]}  Qc7 {[%clk 0:01:38]} 18. g4 {[%clk 0:01:37]}  hxg4 {[%clk 0:01:32]} 19. h5 {[%clk 0:01:38]}  Bh7 {[%clk 0:01:32]} 20. h6 {[%clk 0:01:36]}  g6 {[%clk 0:01:13]} 21. e6 {[%clk 0:01:36]}  f5 {[%clk 0:00:59]} 22. Rd7 {[%clk 0:01:34]} 1-0


[Site "https://www.chess.com"]

[Event "Titled Tuesday Blitz May 9 Late 2023"]
[White "Kollars, Dmitrij"]
[Black "cristianserban1"]
[WhiteFideId "12909572"]
[WhiteElo "2584"]
[BlackElo "2499"]
[Result "1-0"]
[Round "01"]
[TimeControl "180+2"]
[Date "2023.05.09"]
[WhiteClock "0:01:20"]
[BlackClock "0:00:02"]

1. Nf3 {[%clk 0:02:55]}  d5 {[%clk 0:03:00]} 2. g3 {[%clk 0:02:54]}  Nf6 {[%clk 0:03:00]} 3. Bg2 {[%clk 0:02:54]}  c6 {[%clk 0:02:58]} 4. O-O {[%clk 0:02:54]}  Bf5 {[%clk 0:02:58]} 5. d3 {[%clk 0:02:52]}  h6 {[%clk 0:02:58]} 6. Nfd2 {[%clk 0:02:52]}  e6 {[%clk 0:02:57]} 7. e4 {[%clk 0:02:52]}  Bh7 {[%clk 0:02:50]} 8. Nc3 {[%clk 0:02:51]}  Be7 {[%clk 0:02:50]} 9. f4 {[%clk 0:02:48]}  O-O {[%clk 0:02:49]} 10. a4 {[%clk 0:02:48]}  a5 {[%clk 0:02:48]} 11. Kh1 {[%clk 0:02:46]}  Qb6 {[%clk 0:02:17]} 12. Qe2 {[%clk 0:02:41]}  Rd8 {[%clk 0:02:15]} 13. Nb3 {[%clk 0:02:25]}  Nbd7 {[%clk 0:02:14]} 14. f5 {[%clk 0:02:25]}  d4 {[%clk 0:01:54]} 15. fxe6 {[%clk 0:02:21]}  fxe6 {[%clk 0:01:55]} 16. Nb1 {[%clk 0:02:12]}  e5 {[%clk 0:01:53]} 17. N1d2 {[%clk 0:02:10]}  Kh8 {[%clk 0:01:43]} 18. Nc4 {[%clk 0:02:10]}  Qc7 {[%clk 0:01:43]} 19. Bd2 {[%clk 0:02:11]}  b6 {[%clk 0:01:42]} 20. Bh3 {[%clk 0:02:10]}  Bg8 {[%clk 0:01:35]} 21. c3 {[%clk 0:02:05]}  Nc5 {[%clk 0:01:23]} 22. Nxc5 {[%clk 0:02:03]}  Bxc5 {[%clk 0:01:24]} 23. Bxh6 {[%clk 0:01:59]}  Bxc4 {[%clk 0:01:11]} 24. dxc4 {[%clk 0:02:00]}  d3 {[%clk 0:01:11]} 25. Qf3 {[%clk 0:01:59]}  Qf7 {[%clk 0:00:44]} 26. Bg5 {[%clk 0:01:43]}  Be7 {[%clk 0:00:23]} 27. Bf5 {[%clk 0:01:39]}  Qxc4 {[%clk 0:00:16]} 28. Bxf6 {[%clk 0:01:22]}  Bxf6 {[%clk 0:00:17]} 29. Qh5+ {[%clk 0:01:23]}  Kg8 {[%clk 0:00:17]} 30. g4 {[%clk 0:01:24]}  Rd6 {[%clk 0:00:04]} 31. g5 {[%clk 0:01:21]}  Bd8 {[%clk 0:00:02]} 32. Qh7+ {[%clk 0:01:20]} 1-0


[Site "https://www.chess.com"]

[Event "Titled Tuesday Blitz May 9 Late 2023"]
[White "Santos Flores, Alberto"]
[Black "Bortnyk, Olexandr"]
[WhiteFideId "3601234"]
[BlackFideId "14120828"]
[WhiteElo "2235"]
[BlackElo "2734"]
[Result "0-1"]
[Round "01"]
[TimeControl "180+2"]
[Date "2023.05.09"]
[WhiteClock "0:00:07"]
[BlackClock "0:01:45"]

1. e4 {[%clk 0:02:56]}  Nf6 {[%clk 0:02:59]} 2. e5 {[%clk 0:02:55]}  Nd5 {[%clk 0:02:58]} 3. d4 {[%clk 0:02:55]}  d6 {[%clk 0:02:58]} 4. Bc4 {[%clk 0:02:55]}  Nb6 {[%clk 0:02:58]} 5. Bb3 {[%clk 0:02:55]}  Nc6 {[%clk 0:02:50]} 6. e6 {[%clk 0:02:43]}  fxe6 {[%clk 0:02:51]} 7. Nf3 {[%clk 0:02:43]}  g6 {[%clk 0:02:52]} 8. O-O {[%clk 0:02:40]}  Bg7 {[%clk 0:02:52]} 9. Re1 {[%clk 0:02:39]}  O-O {[%clk 0:02:52]} 10. Bxe6+ {[%clk 0:02:31]}  Bxe6 {[%clk 0:02:53]} 11. Rxe6 {[%clk 0:02:32]}  Rxf3 {[%clk 0:02:53]} 12. Qxf3 {[%clk 0:02:09]}  Nxd4 {[%clk 0:02:52]} 13. Qe4 {[%clk 0:02:09]}  d5 {[%clk 0:02:45]} 14. Qe1 {[%clk 0:01:25]}  Nxc2 {[%clk 0:02:44]} 15. Qe2 {[%clk 0:01:24]}  Nxa1 {[%clk 0:02:35]} 16. Rxe7 {[%clk 0:01:23]}  Qd6 {[%clk 0:02:31]} 17. Nc3 {[%clk 0:01:22]}  Rf8 {[%clk 0:02:23]} 18. Nb5 {[%clk 0:01:15]}  Qc5 {[%clk 0:02:23]} 19. Bg5 {[%clk 0:01:09]}  d4 {[%clk 0:02:04]} 20. h4 {[%clk 0:01:04]}  Qf5 {[%clk 0:01:55]} 21. Nxc7 {[%clk 0:01:00]}  d3 {[%clk 0:01:55]} 22. Qd2 {[%clk 0:00:57]}  Bf6 {[%clk 0:01:49]} 23. Nd5 {[%clk 0:00:07]}  Nxd5 {[%clk 0:01:45]} 0-1


[Site "https://www.chess.com"]

[Event "Titled Tuesday Blitz May 9 Late 2023"]
[White "Andreikin, Dmitry"]
[Black "Tifferet, Shaked"]
[WhiteFideId "4158814"]
[BlackFideId "2811529"]
[WhiteElo "2736"]
[BlackElo "2142"]
[Result "1-0"]
[Round "01"]
[TimeControl "180+2"]
[Date "2023.05.09"]
[WhiteClock "0:01:48"]
[BlackClock "0:01:20"]

1. c4 {[%clk 0:02:57]}  e6 {[%clk 0:02:57]} 2. Nc3 {[%clk 0:02:55]}  d5 {[%clk 0:02:57]} 3. d4 {[%clk 0:02:55]}  Nf6 {[%clk 0:02:56]} 4. Bg5 {[%clk 0:02:54]}  c6 {[%clk 0:02:53]} 5. e3 {[%clk 0:02:52]}  Nbd7 {[%clk 0:02:53]} 6. Qc2 {[%clk 0:02:49]}  Be7 {[%clk 0:02:51]} 7. Nf3 {[%clk 0:02:48]}  b6 {[%clk 0:02:49]} 8. cxd5 {[%clk 0:02:45]}  cxd5 {[%clk 0:02:46]} 9. Ne5 {[%clk 0:02:34]}  Bb7 {[%clk 0:02:42]} 10. Bxf6 {[%clk 0:02:08]}  Nxf6 {[%clk 0:02:25]} 11. Bb5+ {[%clk 0:02:06]}  Kf8 {[%clk 0:02:24]} 12. O-O {[%clk 0:02:06]}  Rc8 {[%clk 0:02:21]} 13. Qa4 {[%clk 0:02:05]}  a6 {[%clk 0:02:15]} 14. Bxa6 {[%clk 0:01:52]}  Ra8 {[%clk 0:02:11]} 15. Bxb7 {[%clk 0:01:53]}  Rxa4 {[%clk 0:02:10]} 16. Nxa4 {[%clk 0:01:54]}  Bd6 {[%clk 0:02:02]} 17. Rfc1 {[%clk 0:01:52]}  Ne8 {[%clk 0:01:47]} 18. Rc8 {[%clk 0:01:50]}  Qe7 {[%clk 0:01:20]} 19. Bc6 {[%clk 0:01:48]} 1-0


[Site "https://www.chess.com"]

[Event "Titled Tuesday Blitz May 9 Late 2023"]
[White "Jovic, Stanoje"]
[Black "Martinez Alcantara, Jose Eduardo"]
[WhiteFideId "905020"]
[BlackFideId "3805662"]
[WhiteElo "2236"]
[BlackElo "2711"]
[Result "0-1"]
[Round "01"]
[TimeControl "180+2"]
[Date "2023.05.09"]
[WhiteClock "0:00:00"]
[BlackClock "0:01:05"]

1. c4 {[%clk 0:03:00]}  c5 {[%clk 0:03:00]} 2. g3 {[%clk 0:02:59]}  Nc6 {[%clk 0:03:00]} 3. Bg2 {[%clk 0:02:59]}  g6 {[%clk 0:03:01]} 4. Nc3 {[%clk 0:02:59]}  Bg7 {[%clk 0:02:57]} 5. Nf3 {[%clk 0:02:59]}  d6 {[%clk 0:02:57]} 6. O-O {[%clk 0:02:58]}  e6 {[%clk 0:02:57]} 7. e3 {[%clk 0:02:57]}  Nge7 {[%clk 0:02:57]} 8. d4 {[%clk 0:02:57]}  O-O {[%clk 0:02:57]} 9. b3 {[%clk 0:02:57]}  cxd4 {[%clk 0:02:55]} 10. exd4 {[%clk 0:02:56]}  d5 {[%clk 0:02:55]} 11. c5 {[%clk 0:02:48]}  b6 {[%clk 0:02:54]} 12. cxb6 {[%clk 0:02:45]}  axb6 {[%clk 0:02:44]} 13. a4 {[%clk 0:02:42]}  Ba6 {[%clk 0:02:40]} 14. Re1 {[%clk 0:02:41]}  Nf5 {[%clk 0:02:40]} 15. Ba3 {[%clk 0:02:28]}  Re8 {[%clk 0:02:34]} 16. Ne5 {[%clk 0:01:50]}  Nfxd4 {[%clk 0:02:26]} 17. Nxc6 {[%clk 0:01:48]}  Nxc6 {[%clk 0:02:26]} 18. Rc1 {[%clk 0:01:47]}  Rc8 {[%clk 0:02:21]} 19. h4 {[%clk 0:01:43]}  h5 {[%clk 0:02:21]} 20. Ne2 {[%clk 0:01:15]}  Ne5 {[%clk 0:02:12]} 21. Nf4 {[%clk 0:01:08]}  Rxc1 {[%clk 0:02:07]} 22. Qxc1 {[%clk 0:01:09]}  Qc8 {[%clk 0:01:49]} 23. Qd2 {[%clk 0:01:07]}  d4 {[%clk 0:01:38]} 24. Rc1 {[%clk 0:00:59]}  Qd7 {[%clk 0:01:27]} 25. Kh1 {[%clk 0:00:48]}  Bb7 {[%clk 0:01:19]} 26. Qd1 {[%clk 0:00:09]}  Bxg2+ {[%clk 0:01:17]} 27. Kxg2 {[%clk 0:00:09]}  Qb7+ {[%clk 0:01:17]} 28. f3 {[%clk 0:00:08]}  Ng4 {[%clk 0:01:07]} 29. Qd3 {[%clk 0:00:04]}  e5 {[%clk 0:01:03]} 30. Nh3 {[%clk 0:00:02]}  Ne3+ {[%clk 0:01:03]} 31. Kf2 {[%clk 0:00:02]}  e4 {[%clk 0:01:04]} 32. fxe4 {[%clk 0:00:02]}  Ng4+ {[%clk 0:01:05]} 33. Kg1 {[%clk 0:00:00]}  Rxe4 {[%clk 0:01:05]} 0-1


[Site "https://www.chess.com"]

[Event "Titled Tuesday Blitz May 9 Late 2023"]
[White "Bortnyk, Mykola"]
[Black "Jonkman, Harmen"]
[WhiteFideId "14120836"]
[BlackFideId "1002708"]
[WhiteElo "2582"]
[BlackElo "2368"]
[Result "1-0"]
[Round "01"]
[TimeControl "180+2"]
[Date "2023.05.09"]
[WhiteClock "0:00:58"]
[BlackClock "0:00:00"]

1. e4 {[%clk 0:02:59]}  e6 {[%clk 0:02:57]} 2. Qe2 {[%clk 0:02:58]}  b6 {[%clk 0:02:50]} 3. g3 {[%clk 0:02:56]}  Bb7 {[%clk 0:02:50]} 4. Bg2 {[%clk 0:02:56]}  e5 {[%clk 0:02:25]} 5. d3 {[%clk 0:02:51]}  Nf6 {[%clk 0:02:23]} 6. f4 {[%clk 0:02:44]}  d6 {[%clk 0:01:56]} 7. Nf3 {[%clk 0:02:39]}  Nbd7 {[%clk 0:01:50]} 8. c4 {[%clk 0:02:36]}  g6 {[%clk 0:01:43]} 9. Nc3 {[%clk 0:02:30]}  Bg7 {[%clk 0:01:43]} 10. O-O {[%clk 0:02:27]}  O-O {[%clk 0:01:42]} 11. Nh4 {[%clk 0:02:21]}  exf4 {[%clk 0:01:17]} 12. Bxf4 {[%clk 0:02:12]}  Nh5 {[%clk 0:01:14]} 13. Be3 {[%clk 0:02:10]}  Ne5 {[%clk 0:01:12]} 14. d4 {[%clk 0:01:59]}  Nc6 {[%clk 0:01:08]} 15. Rad1 {[%clk 0:01:58]}  Bc8 {[%clk 0:00:46]} 16. Nf5 {[%clk 0:01:46]}  Bxf5 {[%clk 0:00:18]} 17. exf5 {[%clk 0:01:45]}  Qd7 {[%clk 0:00:17]} 18. g4 {[%clk 0:01:35]}  Nf6 {[%clk 0:00:15]} 19. g5 {[%clk 0:01:34]}  Nh5 {[%clk 0:00:12]} 20. f6 {[%clk 0:01:35]}  Bh8 {[%clk 0:00:11]} 21. Bxc6 {[%clk 0:01:32]}  Qxc6 {[%clk 0:00:10]} 22. Nd5 {[%clk 0:01:33]}  Rfe8 {[%clk 0:00:06]} 23. Ne7+ {[%clk 0:01:24]}  Rxe7 {[%clk 0:00:06]} 24. fxe7 {[%clk 0:01:25]}  Re8 {[%clk 0:00:05]} 25. Qf3 {[%clk 0:01:08]}  Qxf3 {[%clk 0:00:04]} 26. Rxf3 {[%clk 0:01:09]}  Rxe7 {[%clk 0:00:04]} 27. b4 {[%clk 0:01:08]}  Ng7 {[%clk 0:00:04]} 28. Bf2 {[%clk 0:01:02]}  Nf5 {[%clk 0:00:04]} 29. Ra3 {[%clk 0:01:03]}  c6 {[%clk 0:00:03]} 30. d5 {[%clk 0:01:01]}  c5 {[%clk 0:00:03]} 31. bxc5 {[%clk 0:01:01]}  bxc5 {[%clk 0:00:03]} 32. Re1 {[%clk 0:00:58]}  Rb7 {[%clk 0:00:02]} 33. Re8+ {[%clk 0:00:58]}  Kg7 {[%clk 0:00:00]} 34. Rb3 {[%clk 0:00:58]} 1-0


[Site "https://www.chess.com"]

[Event "Titled Tuesday Blitz May 9 Late 2023"]
[White "Herman, Daniel"]
[Black "Abdrlauf, Elham"]
[WhiteFideId "30935008"]
[BlackFideId "1533533"]
[WhiteElo "1897"]
[BlackElo "2466"]
[Result "0-1"]
[Round "01"]
[TimeControl "180+2"]
[Date "2023.05.09"]
[WhiteClock "0:00:01"]
[BlackClock "0:00:03"]

1. c4 {[%clk 0:02:59]}  e6 {[%clk 0:02:59]} 2. d4 {[%clk 0:02:59]}  d5 {[%clk 0:03:00]} 3. Nc3 {[%clk 0:02:59]}  Nf6 {[%clk 0:03:01]} 4. cxd5 {[%clk 0:03:00]}  exd5 {[%clk 0:03:02]} 5. Bg5 {[%clk 0:03:00]}  c6 {[%clk 0:03:02]} 6. e3 {[%clk 0:03:00]}  Bd6 {[%clk 0:03:03]} 7. Bd3 {[%clk 0:03:00]}  O-O {[%clk 0:03:03]} 8. Qc2 {[%clk 0:02:58]}  h6 {[%clk 0:03:01]} 9. Bh4 {[%clk 0:02:57]}  Re8 {[%clk 0:03:00]} 10. Nge2 {[%clk 0:02:44]}  a5 {[%clk 0:02:58]} 11. Bg3 {[%clk 0:02:32]}  Na6 {[%clk 0:02:56]} 12. a3 {[%clk 0:02:30]}  Nc7 {[%clk 0:02:56]} 13. O-O {[%clk 0:02:22]}  Ne6 {[%clk 0:02:54]} 14. Rab1 {[%clk 0:02:15]}  Bxg3 {[%clk 0:02:52]} 15. Nxg3 {[%clk 0:02:11]}  b6 {[%clk 0:02:49]} 16. Rbc1 {[%clk 0:02:00]}  Bb7 {[%clk 0:02:44]} 17. Rfd1 {[%clk 0:01:56]}  Rc8 {[%clk 0:02:43]} 18. Bf5 {[%clk 0:01:54]}  Qe7 {[%clk 0:02:33]} 19. Na4 {[%clk 0:01:49]}  Qd8 {[%clk 0:02:14]} 20. Qb3 {[%clk 0:01:49]}  b5 {[%clk 0:01:26]} 21. Nc5 {[%clk 0:01:47]}  Nxc5 {[%clk 0:01:26]} 22. Rxc5 {[%clk 0:01:48]}  Rc7 {[%clk 0:01:23]} 23. Rdc1 {[%clk 0:01:44]}  Rce7 {[%clk 0:01:17]} 24. Bb1 {[%clk 0:01:28]}  g6 {[%clk 0:01:16]} 25. Ne2 {[%clk 0:01:14]}  Nd7 {[%clk 0:01:15]} 26. R5c3 {[%clk 0:01:12]}  Nb6 {[%clk 0:01:15]} 27. Nf4 {[%clk 0:01:05]}  Qd6 {[%clk 0:01:12]} 28. Nd3 {[%clk 0:01:02]}  Nc4 {[%clk 0:01:05]} 29. Nc5 {[%clk 0:00:57]}  Bc8 {[%clk 0:01:04]} 30. Qd1 {[%clk 0:00:49]}  Nxb2 {[%clk 0:01:02]} 31. Qf3 {[%clk 0:00:43]}  Nc4 {[%clk 0:00:59]} 32. Bd3 {[%clk 0:00:36]}  h5 {[%clk 0:00:51]} 33. h3 {[%clk 0:00:31]}  Kg7 {[%clk 0:00:50]} 34. Bxc4 {[%clk 0:00:30]}  bxc4 {[%clk 0:00:51]} 35. Rb1 {[%clk 0:00:30]}  Bf5 {[%clk 0:00:50]} 36. Rb6 {[%clk 0:00:24]}  Rb8 {[%clk 0:00:49]} 37. Rxb8 {[%clk 0:00:24]}  Qxb8 {[%clk 0:00:50]} 38. Qd1 {[%clk 0:00:20]}  Qb2 {[%clk 0:00:42]} 39. Qc1 {[%clk 0:00:20]}  Qxc1+ {[%clk 0:00:42]} 40. Rxc1 {[%clk 0:00:20]}  Re8 {[%clk 0:00:42]} 41. Kf1 {[%clk 0:00:19]}  Rb8 {[%clk 0:00:41]} 42. f3 {[%clk 0:00:18]}  g5 {[%clk 0:00:21]} 43. e4 {[%clk 0:00:18]}  Bg6 {[%clk 0:00:22]} 44. Kf2 {[%clk 0:00:16]}  Rb2+ {[%clk 0:00:22]} 45. Kf1 {[%clk 0:00:14]}  f5 {[%clk 0:00:19]} 46. e5 {[%clk 0:00:12]}  f4 {[%clk 0:00:19]} 47. Ne6+ {[%clk 0:00:12]}  Kh6 {[%clk 0:00:19]} 48. Nd8 {[%clk 0:00:12]}  c5 {[%clk 0:00:09]} 49. dxc5 {[%clk 0:00:09]}  d4 {[%clk 0:00:10]} 50. c6 {[%clk 0:00:07]}  Rb8 {[%clk 0:00:04]} 51. c7 {[%clk 0:00:06]}  Rc8 {[%clk 0:00:05]} 52. Ne6 {[%clk 0:00:07]}  c3 {[%clk 0:00:03]} 53. Nxd4 {[%clk 0:00:07]}  Rxc7 {[%clk 0:00:04]} 54. Ne2 {[%clk 0:00:07]}  c2 {[%clk 0:00:03]} 55. Nd4 {[%clk 0:00:06]}  Rd7 {[%clk 0:00:04]} 56. Ne6 {[%clk 0:00:01]}  Rd1+ {[%clk 0:00:03]} 0-1


[Site "https://www.chess.com"]

[Event "Titled Tuesday Blitz May 9 Late 2023"]
[White "Terry, Renato"]
[Black "Khandelwal, Ankush"]
[WhiteFideId "3803457"]
[BlackFideId "413470"]
[WhiteElo "2575"]
[BlackElo "2263"]
[Result "1-0"]
[Round "01"]
[TimeControl "180+2"]
[Date "2023.05.09"]
[WhiteClock "0:01:32"]
[BlackClock "0:00:00"]

1. e4 {[%clk 0:02:55]}  c5 {[%clk 0:02:59]} 2. Nf3 {[%clk 0:02:56]}  d6 {[%clk 0:02:59]} 3. Bb5+ {[%clk 0:02:55]}  Bd7 {[%clk 0:02:55]} 4. Bxd7+ {[%clk 0:02:54]}  Qxd7 {[%clk 0:02:54]} 5. O-O {[%clk 0:02:55]}  Nc6 {[%clk 0:02:53]} 6. c3 {[%clk 0:02:55]}  Nf6 {[%clk 0:02:50]} 7. d4 {[%clk 0:02:55]}  Nxe4 {[%clk 0:02:46]} 8. d5 {[%clk 0:02:54]}  Ne5 {[%clk 0:02:35]} 9. Re1 {[%clk 0:02:55]}  Nxf3+ {[%clk 0:02:34]} 10. Qxf3 {[%clk 0:02:56]}  Nf6 {[%clk 0:02:32]} 11. c4 {[%clk 0:02:56]}  e5 {[%clk 0:02:12]} 12. dxe6 {[%clk 0:02:54]}  fxe6 {[%clk 0:02:13]} 13. Nc3 {[%clk 0:02:45]}  Be7 {[%clk 0:02:08]} 14. Qh3 {[%clk 0:02:39]}  e5 {[%clk 0:01:50]} 15. Qd3 {[%clk 0:02:39]}  O-O {[%clk 0:01:43]} 16. Bg5 {[%clk 0:02:39]}  Ng4 {[%clk 0:01:39]} 17. Bxe7 {[%clk 0:02:39]}  Qxe7 {[%clk 0:01:37]} 18. Ne4 {[%clk 0:02:22]}  Rf4 {[%clk 0:01:12]} 19. Rad1 {[%clk 0:02:09]}  Raf8 {[%clk 0:01:07]} 20. f3 {[%clk 0:02:01]}  Nf6 {[%clk 0:00:22]} 21. Qxd6 {[%clk 0:01:58]}  Qf7 {[%clk 0:00:15]} 22. Ng5 {[%clk 0:01:50]}  Qxc4 {[%clk 0:00:11]} 23. Ne6 {[%clk 0:01:45]}  Ne8 {[%clk 0:00:00]} 24. Qd5 {[%clk 0:01:32]} 1-0


[Site "https://www.chess.com"]

[Event "Titled Tuesday Blitz May 9 Late 2023"]
[White "Remolar Gallen, Jose"]
[Black "Matlakov, Maxim"]
[WhiteFideId "2215187"]
[BlackFideId "4168003"]
[WhiteElo "2223"]
[BlackElo "2666"]
[Result "0-1"]
[Round "01"]
[TimeControl "180+2"]
[Date "2023.05.09"]
[WhiteClock "0:00:00"]
[BlackClock "0:00:26"]

1. e4 {[%clk 0:02:59]}  c5 {[%clk 0:02:59]} 2. Nf3 {[%clk 0:02:59]}  Nc6 {[%clk 0:02:59]} 3. Bb5 {[%clk 0:02:58]}  d6 {[%clk 0:02:57]} 4. O-O {[%clk 0:02:58]}  Bd7 {[%clk 0:02:58]} 5. Re1 {[%clk 0:02:58]}  Nf6 {[%clk 0:02:56]} 6. c3 {[%clk 0:02:58]}  a6 {[%clk 0:02:57]} 7. Bf1 {[%clk 0:02:57]}  Bg4 {[%clk 0:02:55]} 8. h3 {[%clk 0:02:58]}  Bxf3 {[%clk 0:02:55]} 9. Qxf3 {[%clk 0:02:58]}  e6 {[%clk 0:02:55]} 10. d3 {[%clk 0:02:57]}  Be7 {[%clk 0:02:55]} 11. Be3 {[%clk 0:02:39]}  O-O {[%clk 0:02:55]} 12. d4 {[%clk 0:02:38]}  d5 {[%clk 0:02:54]} 13. e5 {[%clk 0:02:36]}  Nd7 {[%clk 0:02:52]} 14. Qg3 {[%clk 0:02:22]}  Re8 {[%clk 0:02:46]} 15. Nd2 {[%clk 0:02:12]}  Qb6 {[%clk 0:02:40]} 16. Rab1 {[%clk 0:02:06]}  cxd4 {[%clk 0:02:37]} 17. cxd4 {[%clk 0:02:07]}  Rac8 {[%clk 0:02:27]} 18. b4 {[%clk 0:01:56]}  a5 {[%clk 0:02:20]} 19. b5 {[%clk 0:01:48]}  Nb4 {[%clk 0:01:52]} 20. Nf3 {[%clk 0:01:28]}  Nxa2 {[%clk 0:01:50]} 21. Rb2 {[%clk 0:00:22]}  Nc3 {[%clk 0:01:49]} 22. Bd3 {[%clk 0:00:22]}  a4 {[%clk 0:01:48]} 23. Bh6 {[%clk 0:00:18]}  Bf8 {[%clk 0:01:44]} 24. Ng5 {[%clk 0:00:17]}  Ne4 {[%clk 0:01:36]} 25. Bxe4 {[%clk 0:00:08]}  dxe4 {[%clk 0:01:37]} 26. Nxe4 {[%clk 0:00:08]}  a3 {[%clk 0:01:12]} 27. Rd2 {[%clk 0:00:08]}  Qd8 {[%clk 0:00:49]} 28. Re3 {[%clk 0:00:02]}  f5 {[%clk 0:00:39]} 29. exf6 {[%clk 0:00:02]}  Nxf6 {[%clk 0:00:39]} 30. Bg5 {[%clk 0:00:03]}  Nxe4 {[%clk 0:00:38]} 31. Rxe4 {[%clk 0:00:04]}  Qd5 {[%clk 0:00:36]} 32. Rg4 {[%clk 0:00:04]}  a2 {[%clk 0:00:35]} 33. Rd1 {[%clk 0:00:03]}  Ra8 {[%clk 0:00:32]} 34. Bf6 {[%clk 0:00:03]}  Qd7 {[%clk 0:00:30]} 35. d5 {[%clk 0:00:02]}  exd5 {[%clk 0:00:28]} 36. Bd4 {[%clk 0:00:03]}  Re4 {[%clk 0:00:26]} 37. f4 {[%clk 0:00:00]}  Rxd4 {[%clk 0:00:26]} 0-1


[Site "https://www.chess.com"]